Cogmind - Beta 11 @@@ ROGUE MODE // 2022.04.10 @ 21:01:15 Player: Infomantis Result: Destroyed by S-43 Plague with Heavy Machine Gun Performance ------------- Evolutions (9) 4500 Regions Visited (25) 5000 Robots Destroyed (256) 1280 Value Destroyed (12382) 12382 Prototype IDs (32) 640 Alien Tech Used (0) 0 Bonus (5211) 5211 TOTAL SCORE: 29013 Bonus ------- High Alert Combat Kills 813 Follower Combat Kills 966 Entered Garrisons 800 Used RIF Installer 2000 Met Data Miner 300 Scanned by Researcher 500 Friendly Fire -168 Cogmind --------- Core Integrity 0/1600 Matter 178/300 Energy 100/100 System Corruption 46% Temperature Cool (0) Movement Core (50) Location -1/Access Parts ------- > --- POWER (3) -------- (None) > --- PROPULSION (6) --- (None) > --- UTILITY (13) ----- Machine Analyzer Machine Analyzer Machine Analyzer Machine Analyzer Advanced Terrain Scan Processor > --- WEAPON (3) ------- Powered Hammer > --- INVENTORY (5) ---- Light Quantum Reactor Myomer Leg Nova Cannon Linear Accelerator Peak State ------------ > --- POWER ------------ Improved Ion Engine Light Particle Reactor Quantum Reactor > --- PROPULSION ------- Heavy Treads Centrium Heavy Treads Biometal Heavy Treads > --- UTILITY ---------- Advanced Heat Sink High-capacity Storage Unit Advanced Visual Processing Unit Advanced Sensor Array Core Analyzer Layered Medium Armor Plating SHELL Armor Improved Thermal Defense Suite Relay Coupler [Grunt] Relay Coupler [Duelist] Relay Coupler [Sentry] > --- WEAPON ----------- Enhanced Nova Cannon Enhanced Nova Cannon Advanced Remote Datajack > --- INVENTORY -------- Light Particle Reactor Micro Antimatter Reactor Heavy Treads Compact Wheel Advanced Heat Sink Advanced Terrain Scan Processor Graphene Brace Graphene Brace Experimental Hardlight Generator Point Defense Array Gamma Rifle Phase Gun Enhanced Nova Cannon Improved Potential Cannon Linear Accelerator Micro-nuke Launcher Improved Plasma Cutter Powered Hammer [Rating: 177] Favorites ----------- Power Light Antimatter Reactor Engine Improved Ion Engine Power Core Light Nuclear Core Reactor Light Antimatter Reactor Propulsion Compact Wheel Treads Light Treads Leg Carbon-fiber Leg Wheel Compact Wheel Hover Unit Improved Antigrav System Flight Unit Flight Unit Utility Advanced Terrain Scan Processor Device Improved Terrain Scanner Storage High-capacity Storage Unit Processor Advanced Terrain Scan Processor Hackware Relay Coupler [Grunt] Protection SHELL Armor Weapon Enhanced Nova Cannon Energy Gun Gatling Laser Energy Cannon Enhanced Nova Cannon Ballistic Gun Flak Gun Ballistic Cannon Linear Accelerator Launcher Gamma Bomb Array Special Weapon Advanced Remote Datajack Impact Weapon Power Maul Slashing Weapon Axe Piercing Weapon Kinetic Spear Special Melee Weapon Dirty Datajack Build | -11 -10 -9 -9 -9 -8 -8 -8 -8 -7 -7 -7 -7 -6 -6 -6 -6 -5 -5 -5 -4 -4 -3 -3 -2 -1 ------- Run | Scr Mat Mat Min Exi Min Mat Gar Mat Fac Gar Fac Gar Fac Low Low Dat Pro Fac Gar Fac Arm Res Tes Res Acc Slots Evolved 18 | . . 2 . . . 2 . . 2 . . . 2 . . . . 2 . 2 . 2 . 2 2 Power 2 | . . . . . . . . . . . . . . . . . . . . 1 . . . 1 . Propulsion 4 | . . 1 . . . . . . 1 . . . . . . . . 1 . . . 1 . . . Utility 11 | . . 1 . . . 1 . . 1 . . . 2 . . . . 1 . 1 . 1 . 1 2 Weapon 1 | . . . . . . 1 . . . . . . . . . . . . . . . . . . . Parts Attached 412 | 7 11 11 9 1 . 3 7 19 10 12 9 10 19 15 7 2 8 7 35 20 26 23 32 30 79 Power 44 | 1 2 1 1 . . 1 2 3 . 1 . . 1 . 1 . 1 . 3 1 3 2 3 3 14 Engine 14 | 1 2 1 . . . 1 . 2 . 1 . . 1 . 1 . 1 . 1 . . 1 . . 1 Core 8 | . . . 1 . . . 2 1 . . . . . . . . . . 2 1 1 . . . . Reactor 22 | . . . . . . . . . . . . . . . . . . . . . 2 1 3 3 13 Propulsion 117 | 2 5 6 3 . . . 1 5 2 6 4 4 5 4 2 . 1 3 14 4 9 7 4 7 19 Treads 32 | . . . 1 . . . . 1 . 3 3 1 1 1 . . . . . 1 7 1 1 3 8 Leg 47 | 2 3 5 2 . . . . 2 1 3 . 3 1 . 2 . 1 1 11 1 2 2 1 . 4 Wheel 34 | . 2 1 . . . . . 1 1 . 1 . 3 3 . . . 2 2 2 . 4 2 4 6 Hover 2 | . . . . . . . . . . . . . . . . . . . 1 . . . . . 1 Flight 2 | . . . . . . . 1 1 . . . . . . . . . . . . . . . . . Utility 127 | 2 2 1 3 1 . 1 2 4 6 1 5 3 8 6 1 . 3 2 7 7 7 7 14 9 25 Device 63 | 1 . 1 . 1 . . 1 3 3 . 3 1 5 3 . . 1 . 2 3 5 5 8 6 11 Storage 9 | 1 1 . 1 . . . . 1 . . . . 3 . . . 1 1 . . . . . . . Processor 25 | . 1 . 2 . . 1 . . 2 . 1 1 . 3 . . . . 1 2 1 1 1 . 8 Hackware 9 | . . . . . . . . . . . 1 . . . . . 1 . 3 1 . 1 . 1 1 Protection 21 | . . . . . . . 1 . 1 1 . 1 . . 1 . . 1 1 1 1 . 5 2 5 Artifact . | . . . . . . . . . . . . . . . . . . . . . . . . . . Weapon 124 | 2 2 3 2 . . 1 2 7 2 4 . 3 5 5 3 2 3 2 11 8 7 7 11 11 21 Energy Gun 36 | 1 1 1 . . . . 1 5 1 1 . 1 . 3 2 1 1 . 2 1 3 2 2 5 2 Energy Cannon 12 | . . . . . . 1 . . . . . . . . . . . . . . 1 1 1 2 6 Ballistic Gun 23 | 1 1 1 1 . . . 1 2 . 2 . 1 2 . . . . . 6 2 2 1 . . . Ballistic Cannon 10 | . . . . . . . . . 1 . . 1 . . 1 1 . 1 . 2 . . 3 . . Launcher 13 | . . . . . . . . . . 1 . . 1 . . . 1 . 1 . 1 . 1 1 6 Special Weapon 12 | . . 1 . . . . . . . . . . 1 . . . . . 1 1 . . 2 1 5 Impact Weapon 10 | . . . 1 . . . . . . . . . 1 1 . . . . . . . 1 2 2 2 Slashing Weapon 1 | . . . . . . . . . . . . . . 1 . . . . . . . . . . . Piercing Weapon 5 | . . . . . . . . . . . . . . . . . . 1 . 2 . 2 . . . Special Melee Weapon 2 | . . . . . . . . . . . . . . . . . 1 . 1 . . . . . . Unidentified Prototypes 13 | . . . . . . . . 2 . . . . . . . . . 1 . . . 1 8 1 . Corrupted Parts 1 | . . . . . . . . . . . . . . . . . . . . . . . 1 . . System Corruption 4 | . . . . . . . . . . . . . . . . . . . . . . . 4 . . Parts Lost 189 | . 7 5 4 . . . 10 1 . 4 . 17 2 4 4 . 4 . 21 14 10 7 13 17 45 Power 29 | . 2 1 . . . . 2 . . 1 . 1 . . 1 . 1 . 1 2 1 1 2 3 10 Propulsion 68 | . 3 2 2 . . . 4 . . 2 . 6 1 1 2 . . . 9 5 5 1 6 5 14 Utility 50 | . 1 . 1 . . . 2 . . . . 5 1 2 . . 3 . 5 3 4 5 2 2 14 Weapon 42 | . 1 2 1 . . . 2 1 . 1 . 5 . 1 1 . . . 6 4 . . 3 7 7 Highest Loss Streak 14 | . 5 5 9 . . . 6 1 . 3 . 13 1 2 3 . 2 . 14 8 6 4 10 5 9 To Critical Strikes . | . . . . . . . . . . . . . . . . . . . . . . . . . . Average Slot Usage (%) 84 | . 94 84 57 68 77 83 60 85 97 98 99 87 76 94 97 87 93 97 93 89 96 80 80 74 72 Engine 3 | . 13 9 . . . 9 2 5 7 7 7 6 4 6 5 6 3 5 1 . . . . . 1 Reactor 2 | . . . . . . . . . . . . . . . . . . . . . 4 4 6 9 8 Treads 7 | . . . 9 11 11 9 2 3 7 8 18 13 2 10 7 . . . . 4 16 4 7 11 7 Leg 6 | . 26 20 15 22 22 18 4 6 9 11 . 7 3 . 5 13 13 10 21 16 4 2 2 . 1 Wheel 6 | . . 9 . . . . . 4 9 7 10 1 15 15 13 13 13 16 4 3 3 14 4 2 3 Device 10 | . 8 10 3 2 11 9 4 11 15 15 7 6 18 16 9 6 5 5 4 7 8 13 12 8 12 Storage 5 | . 14 11 4 . . . . 6 7 7 7 6 5 6 6 6 12 11 11 8 5 4 4 4 3 Processor 14 | . 2 11 14 22 22 26 27 18 13 7 7 7 13 19 26 26 20 17 14 18 17 16 15 8 11 Hackware 5 | . . . . . . . . . . . 7 6 . . . . . 5 6 6 9 4 9 11 9 Protection 2 | . . . . . . . . . 1 7 7 6 . . 2 6 3 4 3 2 4 . 3 2 4 Energy Gun 5 | . 14 5 . . . . 1 4 15 12 7 7 . 9 7 . 5 5 4 . 4 5 2 8 . Energy Cannon 1 | . . . . . . 3 3 . . . . . . . . . . . . . 1 . . . 6 Ballistic Gun 4 | . 13 5 . . . . 4 16 2 4 15 7 10 4 . . . . 5 5 4 4 2 . . Ballistic Cannon 1 | . . . . . . . . . 4 3 . 4 . . 2 . 6 . . 4 2 . 2 . . Naked Turns . | . . . . . . . . . . . . . . . . . . . . . . . . . . Heaviest Build 153 | 13 19 19 16 3 3 18 18 23 34 40 35 36 38 38 43 43 44 71 81 72 111 79 108 148 153 Greatest Support 230 | 20 20 30 20 3 3 20 20 25 41 32 26 51 48 48 35 35 32 42 90 80 102 52 130 196 230 Greatest Overweight (x) 9 | . 1 . . . . . 5 1 1 2 2 3 5 1 1 1 1 2 4 4 6 7 9 9 6 Average Overweight (x) . | . . . . . . . . . . 1 1 . . . . . . . . . 3 1 . . 2 Largest Inventory Capacity 20 | 8 10 10 10 5 5 5 5 8 8 8 8 8 10 10 10 10 10 20 20 20 20 20 20 20 20 Average Capacity 14 | 7 9 10 6 5 5 5 5 7 8 8 8 7 9 10 10 10 10 18 20 20 20 20 20 20 17 Most Carried 20 | 7 10 10 9 5 5 5 5 8 8 8 8 8 10 10 10 10 10 20 20 20 20 20 20 20 20 Average Carried 13 | 4 9 6 5 4 4 4 4 6 7 7 7 7 6 9 10 10 9 13 18 19 18 19 17 18 17 Final Capacity 20 | 8 10 10 5 5 5 5 5 8 8 8 8 5 10 10 10 10 10 20 20 20 20 20 20 20 5 Final Carried 20 | 7 8 9 5 4 5 4 5 8 8 8 8 5 10 10 10 10 9 20 20 19 20 20 20 18 4 Class Distribution -------------------- 51% | Scavenger-Mutant 11% | Bothacker-Mutant 11% | Mutant 10% | Scavenger-Gunner 7% | Scavenger-Skirmisher Dominant Class ---------------- Scavenger-Mutant | -10/Materials Scavenger-Mutant | -9/Materials Mutant | -9/Mines Mutant | -9/Exiles Mutant | -8/Mines Mutant | -8/Materials Scavenger-Mutant | -8/Garrison Mutant | -8/Materials Scavenger-Skirmisher | -7/Factory Scavenger-Mutant | -7/Garrison Scavenger-Gunner | -7/Factory Mutant | -7/Garrison Scavenger-Mutant | -6/Factory Scavenger-Mutant | -6/Lower Caves Scavenger-Mutant | -6/Lower Caves Scavenger-Mutant | -6/Data Miner Scavenger-Mutant | -5/Proximity Caves Scavenger-Mutant | -5/Factory Scavenger-Mutant | -5/Garrison Scavenger-Mutant | -4/Factory Scavenger-Gunner | -4/Armory Scavenger-Mutant | -3/Research Bothacker-Mutant | -3/Testing Bothacker-Mutant | -2/Research Scavenger-Mutant | -1/Access Resources | -11 -10 -9 -9 -9 -8 -8 -8 -8 -7 -7 -7 -7 -6 -6 -6 -6 -5 -5 -5 -4 -4 -3 -3 -2 -1 ----------- Run | Scr Mat Mat Min Exi Min Mat Gar Mat Fac Gar Fac Gar Fac Low Low Dat Pro Fac Gar Fac Arm Res Tes Res Acc Matter Collected 6382 | 268 180 134 13 . 30 . 109 343 204 261 45 237 496 240 90 . 218 . 612 213 432 245 504 562 946 Remotely . | . . . . . . . . . . . . . . . . . . . . . . . . . . Salvage Created 12192 | 87 280 208 29 . . . 323 345 212 713 45 282 720 555 246 . 156 . 606 219 765 482 1149 1725 3045 Parts 509 | 12 23 14 1 . . . 7 17 6 32 1 9 23 15 6 . 3 . 23 10 23 20 50 54 160 Haulers Intercepted 3 | . . 1 . . . . . 2 . . . . . . . . . . . . . . . . . Recyclers Shooed 1 | . . . . . . . . . . . . . . . . . . . . 1 . . . . . Parts Field Recycled . | . . . . . . . . . . . . . . . . . . . . . . . . . . Retrieved Matter . | . . . . . . . . . . . . . . . . . . . . . . . . . . Parts Self-Destructed 27 | . . . . . . . . . . . . . . 12 6 . 9 . . . . . . . . Prevented 7 | . . . . . . . . . . . . . . 2 3 . 2 . . . . . . . . Kills | -11 -10 -9 -9 -9 -8 -8 -8 -8 -7 -7 -7 -7 -6 -6 -6 -6 -5 -5 -5 -4 -4 -3 -3 -2 -1 ------- Run | Scr Mat Mat Min Exi Min Mat Gar Mat Fac Gar Fac Gar Fac Low Low Dat Pro Fac Gar Fac Arm Res Tes Res Acc Combat Hostiles Destroyed 211 | . 9 3 1 . . . 8 9 1 22 1 9 8 9 7 . 4 . 13 3 10 3 15 23 53 Melee 6 | . . . . . . . 1 . . . . . . . 3 . . . 1 . . . . . 1 Guns 91 | . 9 3 . . . . 2 9 1 12 1 8 5 8 2 . . . 9 3 2 3 4 10 . Cannons 47 | . . . 1 . . . 1 . . 5 . 1 . . . . 2 . . . 6 . 7 2 22 AOE 46 | . . . . . . . . . . 5 . . 3 . . . 2 . 3 . . . 2 3 28 Classes Destroyed 19 | 1 3 2 2 . . . 1 1 1 . 2 . . 1 . . . . . . 1 . 1 . 3 Worker 9 | . . . . . . . . . . . 1 . 2 . . . . . . . . 1 3 1 1 Builder 10 | . . . 1 . . . . . . . . . . . . . . . . . . . 1 3 5 Tunneler 11 | 4 . . . . . . . . . . . . . . . . . . . . . 3 . . 4 Hauler 3 | . . 1 . . . . . 2 . . . . . . . . . . . . . . . . . Recycler 11 | . . . . . . . . . 2 . . . 3 . . . . . . . . 1 2 . 3 Operator 2 | . . 1 . . . . . . . . . . . . . . . . . . . . . . 1 Watcher 1 | . 1 . . . . . . . . . . . . . . . . . . . . . . . . Swarmer 64 | . 3 . . . . . 2 3 . 8 . 2 4 1 4 . . . 5 . . . 4 5 23 Saboteur 1 | . . . . . . . . . . . . . . . . . . . . . . . . . 1 Grunt 73 | . 6 3 . . . . 5 5 . 10 . 2 3 1 3 . 3 . 6 2 . . 4 6 14 Brawler 7 | . . . 1 . . . . . . . . . . 3 . . 1 . 1 . . . . . 1 Duelist 6 | . . . . . . . 1 . . 1 . . . 1 . . . . . . 2 . . . 1 Protector 1 | . . . . . . . . . . . . . . . . . . . . . . . . . 1 Researcher 1 | . . . . . . . . . . . . . . . . . . . . . . . 1 . . Sentry 20 | . . . . . . . . 1 1 3 . 3 1 2 . . . . . 1 5 2 . 1 . Specialist 5 | . . . . . . . . . . . . . . . . . . . . . 2 . 3 . . Hunter 10 | . . . . . . . . . . . 1 2 . . . . . . 1 . . . . 4 2 Programmer 21 | . . . . . . . . . . . . . . 1 . . . . . . 1 1 4 7 7 Q-Series 3 | . . . . . . . . . . . . . . . . . . . . . . . . . 3 Best Kill Streak 15 | 2 3 3 1 . . . 3 3 1 15 1 5 5 4 4 . 4 . 5 2 4 2 4 13 14 Combat Bots Only 15 | . 3 3 1 . . . 3 3 1 15 1 5 4 4 4 . 4 . 5 2 4 1 4 7 10 Max Kills in Single Turn 6 | 2 1 2 1 . . . 1 1 1 6 1 1 3 1 1 . 2 . 2 1 1 1 2 5 6 Gunslinging 1 | . . 1 . . . . . . . . . . . . . . . . . . . . . . . Exploded 6 | . . . . . . . . . . 4 . . 3 . . . 2 . 2 . . . 2 3 6 Melee 1 | . . . . . . . 1 . . . . . . . 1 . . . 1 . . . . . 1 Uniques/NPCs Destroyed . | . . . . . . . . . . . . . . . . . . . . . . . . . . Combat | -11 -10 -9 -9 -9 -8 -8 -8 -8 -7 -7 -7 -7 -6 -6 -6 -6 -5 -5 -5 -4 -4 -3 -3 -2 -1 -------- Run | Scr Mat Mat Min Exi Min Mat Gar Mat Fac Gar Fac Gar Fac Low Low Dat Pro Fac Gar Fac Arm Res Tes Res Acc Damage Taken 36406 | . 892 648 311 . 18 50 1018 541 126 997 67 2322 678 309 544 . 626 . 2736 1554 1521 386 3045 5056 12961 Core 4992 | . 223 172 111 . . 14 397 83 5 94 . 525 126 32 101 . 64 . 320 247 142 29 311 388 1608 Absorbed by Shields 1055 | . . . . . . . . . . . . 53 . . . . . . . . 628 . . 374 . Reduced by Siege Mode 63 | . . . . . . . . . . . . . . . . . . . . . . . . . 63 Regen/Repaired (Parts) 5072 | . . . . . . . . . . . . . . . . . . . . . . . 222 655 4195 Core Remaining (%) 50 | 100 10 . . . 29 . . 10 . . . 10 . . . . 62 . 68 . 66 . 73 73 . Volleys Fired 651 | 9 40 19 3 . . . 28 36 5 27 4 27 35 18 5 . 16 . 54 19 29 22 51 69 135 Largest 3 | 2 2 2 1 . . . 2 3 3 3 3 3 2 3 2 . 2 . 3 2 3 3 3 3 3 Hottest 321 | 70 85 85 100 . . . 85 100 180 180 136 156 58 163 135 . 122 . 258 102 213 221 207 206 321 Shots Fired 1249 | 18 78 31 3 . . . 30 94 15 67 11 62 65 44 8 . 24 . 98 33 85 45 89 128 221 Gun 886 | 18 78 31 . . . . 19 94 13 52 11 51 62 44 8 . 7 . 90 27 57 44 56 109 15 Cannon 305 | . . . . . . . 11 . 2 13 . 11 . . . . 16 . . 3 28 1 27 17 176 Launcher 28 | . . . . . . . . . . 2 . . 3 . . . 1 . 1 . . . 6 1 14 Special 30 | . . . 3 . . . . . . . . . . . . . . . 7 3 . . . 1 16 Kinetic 510 | 9 39 19 . . . . 17 72 5 14 7 42 62 16 . . 16 . 52 23 36 21 59 1 . Thermal 585 | 9 39 12 3 . . . 13 . 10 51 4 20 . 11 6 . 7 . 38 5 21 20 24 112 180 Explosive 21 | . . . . . . . . . . 2 . . 3 . . . 1 . 1 . . . . . 14 Electromagnetic 109 | . . . . . . . . 22 . . . . . 17 2 . . . . 2 28 4 6 14 14 Robot Hit Streak 26 | 6 7 12 4 . . . 11 5 6 11 9 17 26 12 4 . 12 . 23 6 8 9 15 11 14 Robot Miss Streak 10 | 3 6 2 1 . . . 3 6 3 10 1 8 3 1 3 . 1 . 4 3 4 3 5 5 5 Penetration Max 1 | . . . . . . . . . . . . . 1 1 . . . . . 1 1 . 1 . . Secondary Targets 11 | . 1 1 . . . . . . . . . 2 . . . . . . 3 1 . . 1 2 . Max Gunslinging Chain 1 | . 1 1 . . . . . . . . . 1 . . . . . . 1 1 . . 1 1 . Shots Hit Robots 878 | 11 51 23 3 . . . 31 57 11 49 10 52 47 37 16 . 18 . 74 21 49 27 69 89 133 Core Hits 539 | 4 17 10 1 . . . 10 24 8 57 7 58 25 22 6 . 14 . 25 5 23 15 46 53 109 Critical Kills 17 | . . . . . . . . . . . . . . 2 1 . . . 4 1 2 1 1 3 2 Critical Parts Destroyed 26 | . . . . . . . 5 3 . . . . 2 1 2 . . . 1 1 2 . 5 4 . Critical Strikes 66 | . 1 . . . . . 5 3 1 1 . 1 2 3 3 . 4 . 5 3 7 1 7 17 2 Burn 16 | . 1 . . . . . . . 1 1 . . . . . . 3 . . 1 . . . 9 . Meltdown 5 | . . . . . . . . . . . . . . . . . . . . . 2 . . 1 2 Destroy 29 | . . . . . . . . 3 . . . . 2 3 . . . . 5 2 3 1 6 4 . Blast 5 | . . . . . . . . . . . . 1 . . . . 1 . . . 2 . 1 . . Corrupt 1 | . . . . . . . . . . . . . . . . . . . . . . . . 1 . Smash 10 | . . . . . . . 5 . . . . . . . 3 . . . . . . . . 2 . Melee Attacks 83 | . . . 1 . . . 13 . . . . . . 1 13 . 3 . 9 1 . 9 6 8 19 Impact 62 | . . . 1 . . . 13 . . . . . . . 13 . . . . . . 2 6 8 19 Slashing 1 | . . . . . . . . . . . . . . 1 . . . . . . . . . . . Piercing 20 | . . . . . . . . . . . . . . . . . 3 . 9 1 . 7 . . . Sneak Attacks 6 | . . . 1 . . . . . . . . . . . . . . . 3 . . . 2 . . Combat Hostiles 3 | . . . . . . . . . . . . . . . . . . . 3 . . . . . . Follow-up Attacks . | . . . . . . . . . . . . . . . . . . . . . . . . . . Damage Inflicted 29001 | 165 656 345 118 . 11 . 639 1048 217 1703 158 1081 1357 726 569 . 628 . 1378 403 1624 757 3011 3270 9137 Guns 12928 | 165 655 336 . . . . 145 1048 198 835 158 951 974 726 76 . 76 . 986 372 766 757 1253 2140 311 Cannons 7522 | . . . . . . . 139 . 19 188 . 130 . . . . 311 . . 31 858 . 936 529 4381 Explosions 6762 | . . . . . . . . . . 680 . . 383 . . . 236 . 266 . . . 573 242 4382 Melee 1626 | . . . 68 . . . 355 . . . . . . . 493 . 5 . 126 . . . 232 307 40 Ramming 99 | . 1 9 2 . 11 . . . . . . . . . . . . . . . . . 17 52 7 Kinetic 7561 | 77 210 169 . . . . 132 872 92 204 59 692 974 300 . . 311 . 426 318 754 364 1607 . . Thermal 11785 | 88 445 167 48 . . . 152 . 125 819 99 389 . 297 65 . 76 . 560 57 599 342 582 2453 4422 Explosive 5947 | . . . . . . . . . . 680 . . 383 . . . 236 . 266 . . . . . 4382 Electromagnetic 1983 | . . . . . . . . 176 . . . . . 129 11 . . . . 28 271 51 573 458 286 Impact 1495 | . . . 68 . . . 355 . . . . . . . 493 . . . . . . . 232 307 40 Slashing . | . . . . . . . . . . . . . . . . . . . . . . . . . . Piercing 131 | . . . . . . . . . . . . . . . . . 5 . 126 . . . . . . Highest Corruption 46 | . . . 3 3 3 . . . . . . . . 2 2 2 7 . . . 5 . 16 15 46 Average Corruption 11 | . . . 2 3 3 . . . . . . . . 2 2 2 6 . . . 2 . 9 12 28 Corruption Purged . | . . . . . . . . . . . . . . . . . . . . . . . . . . Corruption Blocked . | . . . . . . . . . . . . . . . . . . . . . . . . . . Effects 180 | . . . 1 1 1 . . . . . . . . 5 16 2 10 . . . 9 . 34 19 82 Message Errors 39 | . . . . . . . . . . . . . . 3 3 1 4 . . . 2 . 8 3 15 Matter Fused 37 | . . . . . . . . . . . . . . . 6 1 1 . . . 3 . 12 3 11 Heat Flow Errors 24 | . . . . 1 . . . . . . . . . . 1 . 1 . . . 1 . 4 1 15 Energy Discharges 22 | . . . . . . . . . . . . . . . 3 . 1 . . . 1 . 3 4 10 Parts Rejected 2 | . . . . . . . . . . . . . . . . . . . . . . . . . 2 Data Loss (minor) 19 | . . . 1 . . . . . . . . . . 1 2 . 1 . . . 1 . 1 4 8 Data Loss (major) 6 | . . . . . . . . . . . . . . . . . . . . . . . 1 . 5 Misfires 9 | . . . . . . . . . . . . . . 1 1 . 1 . . . . . 2 . 4 Alerts 4 | . . . . . 1 . . . . . . . . . . . . . . . 1 . . 1 1 Misdirections 7 | . . . . . . . . . . . . . . . . . . . . . . . . 1 6 Weapon Failures 11 | . . . . . . . . . . . . . . . . . 1 . . . . . 3 2 5 Overload Shots 3 | . . . . . . . . . . . . . . . . . . . 3 . . . . . . Overflow Damage 1126 | . . . 28 . . . 239 . . 60 . . 43 . 153 . 11 . . . 32 . 106 138 316 Projectiles 251 | . . . . . . . . . . . . . . . . . . . . . 32 . 76 1 142 Explosions 288 | . . . . . . . . . . 60 . . 43 . . . 11 . . . . . . . 174 Melee 587 | . . . 28 . . . 239 . . . . . . . 153 . . . . . . . 30 137 . Knockbacks 32 | . . . 2 . . . 1 . 1 9 . 2 . . 2 . 1 . . . . . 13 1 . Impact 8 | . . . 2 . . . 1 . . . . . . . 2 . . . . . . . 2 1 . Kinetic 21 | . . . . . . . . . 1 8 . 2 . . . . 1 . . . . . 9 . . Secondary 3 | . . . . . . . . . . 1 . . . . . . . . . . . . 2 . . Self-Inflicted Damage 644 | . . . . . 5 . . . . . . . . . . . 44 . 33 . . . 38 38 486 Shots 20 | . . . . . . . . . . . . . . . . . 1 . 1 . . . 4 4 10 Rammed 8 | . 1 . 1 . 1 . . . . . . . . . . . . . . . . . 3 1 1 Targets Rammed 13 | . 1 5 1 . 1 . . . . . . . . . . . . . . . . . 3 1 1 Kicked 5 | . . 5 . . . . . . . . . . . . . . . . . . . . . . . Crushed . | . . . . . . . . . . . . . . . . . . . . . . . . . . Highest Temperature 504 | 54 364 144 37 238 . . 87 227 45 117 145 389 11 126 266 . 262 . 504 178 300 216 226 288 453 Average Temperature 101 | 22 109 47 16 126 . . 27 98 20 34 66 171 11 47 74 . 134 . 180 100 104 57 105 66 113 Received Heat Transfer 5848 | . 453 357 144 . . 9 549 261 36 303 . 645 297 72 147 . 216 . 477 270 204 54 42 133 1179 Effects 17 | . 1 . . . . . . 2 . . . . . . . . . . 6 . 3 . . . 5 Shutdowns 4 | . . . . . . . . . . . . . . . . . . . 1 . . . . . 3 Energy Bleed 2 | . . . . . . . . . . . . . . . . . . . 1 . . . . . 1 Interference 8 | . . . . . . . . 2 . . . . . . . . . . 2 . 3 . . . 1 Short Circuit 2 | . 1 . . . . . . . . . . . . . . . . . 1 . . . . . . Damage (minor) 1 | . . . . . . . . . . . . . . . . . . . 1 . . . . . . Siege Activations 1 | . . . . . . . . . . . . . . . . . . . . . . . . . 1 Total Turns 30 | . . . . . . . . . . . . . . . . . . . . . . . . . 30 Longest Duration 30 | . . . . . . . . . . . . . . . . . . . . . . . . . 30 Robots Corrupted 2 | . . . . . . . . . . . . . . . . . . . . . . . 2 . . Combat Hostiles 2 | . . . . . . . . . . . . . . . . . . . . . . . 2 . . Parts Fried 18 | . . . 3 . . . 4 . . . . . . . 4 . . . . . . 1 6 . . Impact Corruptions 25 | . . . 2 . . . 9 . . . . . . . 5 . . . . . . . 3 6 . Robots Melted 11 | . . . . . . . . . . . . . . 1 . . . . . . 2 . . 6 2 Combat Hostiles 11 | . . . . . . . . . . . . . . 1 . . . . . . 2 . . 6 2 Parts Melted 56 | . 1 1 . . . . . . . 2 . . . 4 . . . . 1 . 6 . 1 24 16 Heat Transferred 17681 | 259 1184 407 100 . . . 259 . 346 1741 225 742 . 675 150 . 370 . 1001 185 461 444 703 4248 4181 Parts Sabotaged 4 | . . . . . . . . . . . . . . . . . . . . . 3 . . . 1 Parts Stolen . | . . . . . . . . . . . . . . . . . . . . . . . . . . Parts Stripped . | . . . . . . . . . . . . . . . . . . . . . . . . . . Power Chain Reactions 2 | . . . . . . . . . . . . . . . . . . . . . . . 2 . . Missiles Intercepted . | . . . . . . . . . . . . . . . . . . . . . . . . . . Alert | -11 -10 -9 -9 -9 -8 -8 -8 -8 -7 -7 -7 -7 -6 -6 -6 -6 -5 -5 -5 -4 -4 -3 -3 -2 -1 ------- Run | Scr Mat Mat Min Exi Min Mat Gar Mat Fac Gar Fac Gar Fac Low Low Dat Pro Fac Gar Fac Arm Res Tes Res Acc Peak Influence 1066 | 20 320 214 109 . . 22 211 350 153 627 370 368 308 . . . . 106 545 285 220 174 257 240 1066 Initial 329 | . 13 29 69 . . . 16 102 98 107 329 158 166 . . . . 82 74 285 . 84 94 22 106 Average 231 | 6 153 126 86 . . 3 83 197 137 411 287 236 240 . . . . 91 350 118 57 85 124 87 496 Maximum Alert Level 3 | . 1 1 . . . . 1 1 . 2 1 1 1 . . . . . 2 1 1 . 1 1 3 Low Security (%) 58 | 100 61 80 100 . 100 100 93 47 100 15 4 12 18 . . . . 100 11 75 95 100 74 94 42 Level 1 27 | . 38 19 . . . . 6 52 . 38 95 87 81 . . . . . 51 24 4 . 25 5 6 Level 2 6 | . . . . . . . . . . 46 . . . . . . . . 37 . . . . . 9 Level 3 8 | . . . . . . . . . . . . . . . . . . . . . . . . . 41 Level 4 . | . . . . . . . . . . . . . . . . . . . . . . . . . . Level 5 . | . . . . . . . . . . . . . . . . . . . . . . . . . . High Security . | . . . . . . . . . . . . . . . . . . . . . . . . . . Max Security . | . . . . . . . . . . . . . . . . . . . . . . . . . . Squads Dispatched 39 | . 3 3 . . . . . 1 . . . . 1 . . . . . . 2 3 3 6 5 12 Investigation 10 | . 2 2 . . . . . 1 . . . . 1 . . . . . . . . 1 2 . 1 Extermination 11 | . . . . . . . . . . . . . . . . . . . . 1 2 . 2 2 4 Reinforcement 14 | . 1 1 . . . . . . . . . . . . . . . . . 1 1 1 2 3 4 Assault 4 | . . . . . . . . . . . . . . . . . . . . . . 1 . . 3 Garrison . | . . . . . . . . . . . . . . . . . . . . . . . . . . Intercept . | . . . . . . . . . . . . . . . . . . . . . . . . . . Searches Triggered . | . . . . . . . . . . . . . . . . . . . . . . . . . . Data Miner Redirects 7 | . . . . . . . . . . . . . . . . . . . . . . 1 2 . 4 Construction Impeded 3 | . . . . . . . . . . . . . . . . . . . . . . . . 1 2 Haulers Reinforced 1 | . . . . . . . . . . . . . . . . . . . . . . . . 1 . Active Scanning Responses . | . . . . . . . . . . . . . . . . . . . . . . . . . . Cargo Convoy Interrupts . | . . . . . . . . . . . . . . . . . . . . . . . . . . Stealth | -11 -10 -9 -9 -9 -8 -8 -8 -8 -7 -7 -7 -7 -6 -6 -6 -6 -5 -5 -5 -4 -4 -3 -3 -2 -1 --------- Run | Scr Mat Mat Min Exi Min Mat Gar Mat Fac Gar Fac Gar Fac Low Low Dat Pro Fac Gar Fac Arm Res Tes Res Acc Distress Signals 14 | . 1 2 . . . 1 . . . . . 1 1 . . . . . . 2 1 . 3 . 2 Communications Jammed . | . . . . . . . . . . . . . . . . . . . . . . . . . . Distress Signals . | . . . . . . . . . . . . . . . . . . . . . . . . . . Times Spotted 424 | . 18 13 3 . 4 2 11 11 1 21 2 27 13 10 11 . 7 . 29 21 27 13 26 47 107 Peak Tracking Total 17 | . 6 7 3 . 4 2 7 4 1 12 1 11 4 5 4 . 4 . 5 11 9 4 7 9 17 Tactical Retreats 32 | . 3 . 1 . . . 1 . . 1 . 4 1 1 1 . . . 4 1 1 1 2 2 8 Traps | -11 -10 -9 -9 -9 -8 -8 -8 -8 -7 -7 -7 -7 -6 -6 -6 -6 -5 -5 -5 -4 -4 -3 -3 -2 -1 ------- Run | Scr Mat Mat Min Exi Min Mat Gar Mat Fac Gar Fac Gar Fac Low Low Dat Pro Fac Gar Fac Arm Res Tes Res Acc Traps Triggered 21 | . 2 . . . . . 2 . . 2 . 2 . . . . . 1 3 1 1 . 4 1 2 Indirectly 4 | . . . . . . . . . . . . . . . . . . . . . . . 4 . . Trap Hack Attempts . | . . . . . . . . . . . . . . . . . . . . . . . . . . Triggered . | . . . . . . . . . . . . . . . . . . . . . . . . . . Disarmed . | . . . . . . . . . . . . . . . . . . . . . . . . . . Reprogrammed . | . . . . . . . . . . . . . . . . . . . . . . . . . . Reused . | . . . . . . . . . . . . . . . . . . . . . . . . . . Traps Extracted . | . . . . . . . . . . . . . . . . . . . . . . . . . . Installed . | . . . . . . . . . . . . . . . . . . . . . . . . . . Triggered 5 | . . . . . . . . . . . . . . 3 . . 1 . . . . . 1 . . Machines | -11 -10 -9 -9 -9 -8 -8 -8 -8 -7 -7 -7 -7 -6 -6 -6 -6 -5 -5 -5 -4 -4 -3 -3 -2 -1 ---------- Run | Scr Mat Mat Min Exi Min Mat Gar Mat Fac Gar Fac Gar Fac Low Low Dat Pro Fac Gar Fac Arm Res Tes Res Acc Machines Disabled 25 | . . 1 . . . . . 2 . 1 . . . . . . . . 2 2 2 2 4 2 7 Max in Single Turn 2 | . . 1 . . . . . 1 . 1 . . . . . . . . 1 1 1 1 1 1 2 Garrison Access 5 | . . . . . . . . 1 . . . . . . . . . . . . . 1 1 1 1 Garrison Relay 3 | . . . . . . . . . . 1 . . . . . . . . 2 . . . . . . Energy Cycler 1 | . . . . . . . . . . . . . . . . . . . . . . . . . 1 Machines Sabotaged . | . . . . . . . . . . . . . . . . . . . . . . . . . . Garrisons Compromised . | . . . . . . . . . . . . . . . . . . . . . . . . . . Overloaded Fab Kills . | . . . . . . . . . . . . . . . . . . . . . . . . . . Hacking | -11 -10 -9 -9 -9 -8 -8 -8 -8 -7 -7 -7 -7 -6 -6 -6 -6 -5 -5 -5 -4 -4 -3 -3 -2 -1 --------- Run | Scr Mat Mat Min Exi Min Mat Gar Mat Fac Gar Fac Gar Fac Low Low Dat Pro Fac Gar Fac Arm Res Tes Res Acc Machines Accessed 69 | . 1 5 . 1 . 2 . 6 1 . 6 . 4 3 2 4 1 3 . 6 2 5 8 5 4 Terminals 38 | . 1 4 . . . 1 . 5 . . 3 . 3 . . . 1 2 . 4 1 3 4 3 3 Fabricators 7 | . . . . . . . . . . . 2 . 1 . . . . . . 1 1 1 1 . . Repair Stations 1 | . . . . . . . . . . . . . . . . . . . . 1 . . . . . Recycling Units 1 | . . 1 . . . . . . . . . . . . . . . . . . . . . . . Scanalyzers 3 | . . . . . . . . . . . . . . . . . . . . . . . 2 1 . Garrison Access 9 | . . . . . . 1 . 1 1 . 1 . . . . . . 1 . . . 1 1 1 1 Total Hacks 170 | . 2 12 . 1 . 3 . 15 2 . 14 . 11 8 7 30 1 6 . 11 4 14 14 8 7 Successful 99 | . 2 5 . 1 . 3 . 5 2 . 8 . 3 8 7 30 1 3 . 5 1 6 5 1 3 Failed 70 | . . 6 . . . . . 10 . . 6 . 8 . . . . 3 . 6 3 8 9 7 4 Catastrophic 16 | . . 2 . . . . . 4 . . 1 . 2 . . . . . . . . . 3 1 3 Database Lockouts 1 | . . 1 . . . . . . . . . . . . . . . . . . . . . . . Manual 47 | . . 12 . . . . . 5 . . 6 . 4 . . . . 1 . 3 1 5 5 4 1 Terminals 87 | . 2 11 . . . 2 . 14 . . 7 . 9 . . . 1 4 . 8 1 9 9 5 5 Fabricators 17 | . . . . . . . . . . . 6 . 2 . . . . . . 2 3 2 2 . . Repair Stations 1 | . . . . . . . . . . . . . . . . . . . . 1 . . . . . Recycling Units 1 | . . 1 . . . . . . . . . . . . . . . . . . . . . . . Scanalyzers 4 | . . . . . . . . . . . . . . . . . . . . . . . 2 2 . Garrison Access 14 | . . . . . . 1 . 1 2 . 1 . . . . . . 2 . . . 3 1 1 2 Terminal Hacks 73 | . 2 4 . 1 . 2 . 3 . . 3 . 2 8 7 30 1 1 . 3 . 3 2 . 1 Record 29 | . 1 . . 1 . . . . . . . . . 6 6 11 1 . . . . 1 1 . 1 Part Schematic 9 | . . . . . . . . . . . . . . . . 9 . . . . . . . . . Robot Schematic 7 | . . . . . . . . . . . . . . . . 7 . . . . . . . . . Robot Analysis 2 | . . 2 . . . . . . . . . . . . . . . . . . . . . . . Prototype ID Bank 4 | . . . . . . . . . . . . . 1 . . 3 . . . . . . . . . Open Door 4 | . . . . . . . . . . . . . . 2 1 . . . . . . . 1 . . Open DSF 1 | . . . . . . . . . . . 1 . . . . . . . . . . . . . . Branch Access Points 6 | . . 1 . . . 1 . . . . 1 . 1 . . . . 1 . 1 . . . . . Scanalyzer Index 1 | . . . . . . . . . . . 1 . . . . . . . . . . . . . . Unreport Threat 2 | . . . . . . . . . . . . . . . . . . . . 1 . 1 . . . Locate Traps 1 | . . . . . . . . 1 . . . . . . . . . . . . . . . . . Dispatch Records 1 | . . . . . . . . 1 . . . . . . . . . . . . . . . . . Surveillance Status 1 | . . . . . . . . . . . . . . . . . . . . . . 1 . . . Patrol Status 1 | . . . . . . . . 1 . . . . . . . . . . . . . . . . . Investigation Status 1 | . . 1 . . . . . . . . . . . . . . . . . . . . . . . Registered Components 2 | . . . . . . 1 . . . . . . . . . . . . . 1 . . . . . Zone Layout 1 | . 1 . . . . . . . . . . . . . . . . . . . . . . . . Fabricator Hacks 4 | . . . . . . . . . . . 1 . . . . . . . . 1 1 1 . . . Network Status 4 | . . . . . . . . . . . 1 . . . . . . . . 1 1 1 . . . Repair Station Hacks . | . . . . . . . . . . . . . . . . . . . . . . . . . . Recycling Unit Hacks . | . . . . . . . . . . . . . . . . . . . . . . . . . . Scanalyzer . | . . . . . . . . . . . . . . . . . . . . . . . . . . Garrison Access Hacks 12 | . . . . . . 1 . 1 2 . 1 . . . . . . 2 . . . 1 1 1 2 Unlock Access 4 | . . . . . . 1 . . 1 . 1 . . . . . . 1 . . . . . . . Seal Access 4 | . . . . . . . . 1 . . . . . . . . . . . . . . 1 1 1 Coupler Status 4 | . . . . . . . . . 1 . . . . . . . . 1 . . . 1 . . 1 Unauthorized Hacks 10 | . . 1 . . . . . 1 . . 3 . 1 . . . . . . 1 . 1 2 . . Terminals 4 | . . . . . . . . 1 . . 1 . 1 . . . . . . . . 1 . . . Botnet 4 | . . . . . . . . 1 . . 1 . 1 . . . . . . . . 1 . . . Fabricators 4 | . . . . . . . . . . . 2 . . . . . . . . 1 . . 1 . . Report 2 | . . . . . . . . . . . 1 . . . . . . . . 1 . . . . . Liberate 1 | . . . . . . . . . . . 1 . . . . . . . . . . . . . . Overload 1 | . . . . . . . . . . . . . . . . . . . . . . . 1 . . Repair Stations . | . . . . . . . . . . . . . . . . . . . . . . . . . . Recycling Units 1 | . . 1 . . . . . . . . . . . . . . . . . . . . . . . Tunnel 1 | . . 1 . . . . . . . . . . . . . . . . . . . . . . . Scanalyzers 1 | . . . . . . . . . . . . . . . . . . . . . . . 1 . . Researchers 1 | . . . . . . . . . . . . . . . . . . . . . . . 1 . . Garrison Access . | . . . . . . . . . . . . . . . . . . . . . . . . . . Data Cores Recovered . | . . . . . . . . . . . . . . . . . . . . . . . . . . Used . | . . . . . . . . . . . . . . . . . . . . . . . . . . Hacking Detections 48 | . 1 4 . . . 1 . 4 1 . 4 . 4 . . . . 3 . 6 2 5 6 4 3 Full Trace Events 7 | . . 1 . . . . . 2 . . . . 1 . . . . . . . . 1 1 . 1 Feedback Events . | . . . . . . . . . . . . . . . . . . . . . . . . . . Feedback Blocked . | . . . . . . . . . . . . . . . . . . . . . . . . . . Robot Schematics Acquired 8 | . . . . . . . . . . . . . . . . 7 . . . . . . 1 . . Robots Built . | . . . . . . . . . . . . . . . . . . . . . . . . . . Authchips . | . . . . . . . . . . . . . . . . . . . . . . . . . . Time . | . . . . . . . . . . . . . . . . . . . . . . . . . . Total Robot Build Rating . | . . . . . . . . . . . . . . . . . . . . . . . . . . Part Schematics Acquired 12 | . . . . . . . . . . . . . . . . 9 . . . . . . 3 . . Parts Built . | . . . . . . . . . . . . . . . . . . . . . . . . . . Authchips . | . . . . . . . . . . . . . . . . . . . . . . . . . . Time . | . . . . . . . . . . . . . . . . . . . . . . . . . . Total Part Build Rating . | . . . . . . . . . . . . . . . . . . . . . . . . . . Parts Repaired . | . . . . . . . . . . . . . . . . . . . . . . . . . . Time . | . . . . . . . . . . . . . . . . . . . . . . . . . . Parts Recycled . | . . . . . . . . . . . . . . . . . . . . . . . . . . Recycled Matter . | . . . . . . . . . . . . . . . . . . . . . . . . . . Retrieved Matter . | . . . . . . . . . . . . . . . . . . . . . . . . . . Retrieved Components . | . . . . . . . . . . . . . . . . . . . . . . . . . . Parts Scanalyzed . | . . . . . . . . . . . . . . . . . . . . . . . . . . Part Schematics Acquired . | . . . . . . . . . . . . . . . . . . . . . . . . . . Parts Damaged . | . . . . . . . . . . . . . . . . . . . . . . . . . . Bothacking | -11 -10 -9 -9 -9 -8 -8 -8 -8 -7 -7 -7 -7 -6 -6 -6 -6 -5 -5 -5 -4 -4 -3 -3 -2 -1 ------------ Run | Scr Mat Mat Min Exi Min Mat Gar Mat Fac Gar Fac Gar Fac Low Low Dat Pro Fac Gar Fac Arm Res Tes Res Acc Used RIF Installer 4 | . . . . . . . 1 . . 1 . 1 . . . . . . 1 . . . . . . Threat Obfuscator 1 | . . . . . . . . . . . . . . . . . . . 1 . . . . . . Watcher Feeds 1 | . . . . . . . . . . 1 . . . . . . . . . . . . . . . Patrol Navigation 1 | . . . . . . . . . . . . 1 . . . . . . . . . . . . . Robots Hacked 13 | . . . . . . . . . . . . . . . . . . . 4 2 . . . 1 6 Non-combat 3 | . . . . . . . . . . . . . . . . . . . . . . . . . 3 Combat 10 | . . . . . . . . . . . . . . . . . . . 4 2 . . . 1 3 Robot Hacks Applied 16 | . . . . . . . . . . . . . . . . . . . 5 3 . . . 1 7 parse_system 4 | . . . . . . . . . . . . . . . . . . . 1 1 . . . . 2 locate_stockpiles 1 | . . . . . . . . . . . . . . . . . . . . . . . . . 1 find_shortcuts 1 | . . . . . . . . . . . . . . . . . . . . . . . . . 1 disrupt_area 1 | . . . . . . . . . . . . . . . . . . . 1 . . . . . . amplify_resonance 2 | . . . . . . . . . . . . . . . . . . . 1 1 . . . . . overwrite_iff 1 | . . . . . . . . . . . . . . . . . . . . . . . . . 1 streamctrl_high 5 | . . . . . . . . . . . . . . . . . . . 2 1 . . . 1 1 formatsys_high 1 | . . . . . . . . . . . . . . . . . . . . . . . . . 1 Relay Couplers Released 16 | . . . . . . . . . . 3 . . . . . . . . 10 . . 3 . . . Machine Destruction 16 | . . . . . . . . . . 3 . . . . . . . . 10 . . 3 . . . Attached 8 | . . . . . . . . . . . 1 . . . . . . . 3 1 . 1 . 1 1 Fabnet Peak Effective % . | . . . . . . . . . . . . . . . . . . . . . . . . . . Robots Rewired 8 | . . . . . . . . . . . . 4 . 1 . . . . . . 3 . . . . Allies Hacked 1 | . . . . . . . . . . . . . . . . . . . . . 1 . . . . Hacks Repelled . | . . . . . . . . . . . . . . . . . . . . . . . . . . Allies | -11 -10 -9 -9 -9 -8 -8 -8 -8 -7 -7 -7 -7 -6 -6 -6 -6 -5 -5 -5 -4 -4 -3 -3 -2 -1 -------- Run | Scr Mat Mat Min Exi Min Mat Gar Mat Fac Gar Fac Gar Fac Low Low Dat Pro Fac Gar Fac Arm Res Tes Res Acc Total Allies 22 | . . . . . . . . . . . . 4 . 4 . . 1 . 2 1 6 . . 1 3 Largest Group 6 | . . . . . . . . . . . . 4 . 4 1 . 1 1 1 1 6 1 . 1 2 Highest-Rated Group 326 | . . . . . . . . . . . . 56 . 105 30 . 96 96 96 47 326 57 . 48 112 Highest-Rated Ally 96 | . . . . . . . . . . . . 14 . 30 30 . 96 96 96 47 65 57 . 48 64 Total Orders 2 | . . . . . . . . . . . . . . 2 . . . . . . . . . . . EXPLORE 2 | . . . . . . . . . . . . . . 2 . . . . . . . . . . . Ally Attacks 149 | . . . . . . . . . . . . 6 . . 6 . 4 . 43 2 48 . . 10 30 Total Damage 3967 | . . . . . . . . . . . . . . . 221 . 95 . 958 17 1187 . . 429 1060 Kills 22 | . . . . . . . . . . . . . . . . . 2 . 10 . 4 . . 3 3 Allies Corrupted 1 | . . . . . . . . . . . . . . . . . . . . . 1 . . . . Allies Melted . | . . . . . . . . . . . . . . . . . . . . . . . . . . Intel | -11 -10 -9 -9 -9 -8 -8 -8 -8 -7 -7 -7 -7 -6 -6 -6 -6 -5 -5 -5 -4 -4 -3 -3 -2 -1 ------- Run | Scr Mat Mat Min Exi Min Mat Gar Mat Fac Gar Fac Gar Fac Low Low Dat Pro Fac Gar Fac Arm Res Tes Res Acc Robot Analysis Total 2 | . . 2 . . . . . . . . . . . . . . . . . . . . . . . Derelict Logs Recovered 3 | . . . . . . . . . . . . . . 1 1 . 1 . . . . . . . . Drone Launches 2 | . . . . . . . . . . . . . . 2 . . . . . . . . . . . Drone Recoveries . | . . . . . . . . . . . . . . . . . . . . . . . . . . Exploration | -11 -10 -9 -9 -9 -8 -8 -8 -8 -7 -7 -7 -7 -6 -6 -6 -6 -5 -5 -5 -4 -4 -3 -3 -2 -1 ------------- Run | Scr Mat Mat Min Exi Min Mat Gar Mat Fac Gar Fac Gar Fac Low Low Dat Pro Fac Gar Fac Arm Res Tes Res Acc Turns Passed 14514 | 127 431 249 114 79 40 96 390 551 270 410 617 569 482 1031 925 125 375 113 865 500 774 734 1263 1052 2332 Spaces Moved 8623 | 72 236 143 137 155 76 66 260 409 181 205 437 246 300 782 573 98 277 86 405 316 281 411 694 461 1316 Core 1168 | 6 . . 126 155 76 15 193 110 . . . 36 70 . . . . . . . . . . . 381 Treads 1393 | . . . 11 . . 51 40 . . 8 . 125 . 4 . . . . . . 75 . 455 347 277 Legs 1434 | 66 222 124 . . . . . 86 39 1 . 51 7 . 197 97 . . 284 197 . 29 . . 34 Wheels 4563 | . 14 19 . . . . . 175 142 196 437 34 223 778 376 1 277 86 121 119 206 382 239 114 624 Hover . | . . . . . . . . . . . . . . . . . . . . . . . . . . Flight 65 | . . . . . . . 27 38 . . . . . . . . . . . . . . . . . Fastest Speed 40 | 50 95 100 50 50 50 50 50 40 100 115 105 50 50 100 100 115 100 93 108 120 160 101 105 110 50 Average Speed 121 | 114 118 117 58 50 50 135 93 89 121 132 117 130 94 100 131 124 108 106 145 124 189 123 139 153 126 Slowest Speed 400 | 120 120 120 160 50 50 160 300 120 180 240 130 260 300 240 190 190 115 120 260 190 400 330 215 215 170 Overloaded Moves . | . . . . . . . . . . . . . . . . . . . . . . . . . . Propulsion Burnouts . | . . . . . . . . . . . . . . . . . . . . . . . . . . Robots Hopped . | . . . . . . . . . . . . . . . . . . . . . . . . . . Cave-ins Triggered . | . . . . . . . . . . . . . . . . . . . . . . . . . . Exploration Rate (%) 36 | 4 38 21 42 54 39 11 59 38 4 33 16 52 10 65 76 72 58 3 67 14 32 15 69 22 39 Regions Visited 25 Branch Regions 9 Pre-discovered Areas 4 | . . 1 . 1 . . . . . . . . . . 1 1 . . . . . . . . . Known Exits Taken 13 | . . 1 1 1 1 1 . 1 1 . 1 . 1 . . . . 1 . 1 . 1 1 . . Unknown Exits Taken 8 | 1 1 . . . . . . . . . . . . 1 1 1 1 . . . 1 . . 1 . Scrap Searched 7 | . . . . . 1 . . . . . . . . 2 3 . 1 . . . . . . . . Spaces Dug 35 | . . . . . . . . . . . . . . 1 1 . 5 . . 1 . 6 . . 21 Terrain Destroyed 311 | . . . . . . . . . . 10 . . 25 1 1 . 18 . 6 3 8 6 17 5 211 Melee 26 | . . . . . . . . . . . . . . 1 1 . . . . 1 . 6 . . 17 Projectile 71 | . . . . . . . . . . . . . . . . . 5 . 1 2 8 . 5 5 45 AOE 214 | . . . . . . . . . . 10 . . 25 . . . 13 . 5 . . . 12 . 149 Terrain Rammed . | . . . . . . . . . . . . . . . . . . . . . . . . . . Walls Destroyed . | . . . . . . . . . . . . . . . . . . . . . . . . . . Machines Disabled . | . . . . . . . . . . . . . . . . . . . . . . . . . . Actions | -11 -10 -9 -9 -9 -8 -8 -8 -8 -7 -7 -7 -7 -6 -6 -6 -6 -5 -5 -5 -4 -4 -3 -3 -2 -1 --------- Run | Scr Mat Mat Min Exi Min Mat Gar Mat Fac Gar Fac Gar Fac Low Low Dat Pro Fac Gar Fac Arm Res Tes Res Acc Total 11362 | 95 312 188 159 155 77 72 352 520 220 280 534 437 434 982 711 101 328 104 579 387 458 579 889 668 1741 Wait 1014 | 1 17 3 3 . . 1 9 22 11 10 70 71 62 153 109 . 18 . 33 17 39 90 68 79 128 Move 8602 | 71 235 142 136 154 76 66 259 408 180 204 437 245 299 781 572 97 276 86 404 315 280 410 693 460 1316 Hop . | . . . . . . . . . . . . . . . . . . . . . . . . . . Pick Up 164 | 7 2 5 . . 1 1 3 15 4 3 5 2 11 2 1 . 4 11 11 9 13 9 12 9 24 Fast Attach 203 | 7 2 3 3 . . 2 4 14 7 7 2 5 12 9 5 2 1 4 17 7 13 16 17 11 33 Attach 121 | . 2 6 5 1 . 1 3 3 1 2 2 3 6 2 . . 3 1 9 8 4 2 11 12 34 Detach 41 | . . 1 3 . . . 2 . 1 1 . . 3 . . . . . 2 . . 2 6 4 16 Swap 88 | . 7 2 1 . . . . 2 2 3 5 2 1 4 2 . 4 2 9 5 9 5 4 7 12 Drop 172 | . 6 2 3 . . 1 1 20 9 7 9 2 5 8 4 2 3 . 10 6 12 14 17 8 23 Fire 651 | 9 40 19 3 . . . 28 36 5 27 4 27 35 18 5 . 16 . 54 19 29 22 51 69 135 Melee 83 | . . . 1 . . . 13 . . . . . . 1 13 . 3 . 9 1 . 9 6 8 19 Ram 1 | . 1 . . . . . . . . . . . . . . . . . . . . . . . . Kick 5 | . . 5 . . . . . . . . . . . . . . . . . . . . . . . Crush 6 | . . . 1 . . . . . . . . . . . . . . . . . . . 3 1 1 Escape Stasis 74 | . . . . . . . 30 . . 16 . 6 . . . . . . 21 . . . 1 . . Rewire 137 | . . . . . . . . . . . . 74 . 4 . . . . . . 59 . . . . Trap . | . . . . . . . . . . . . . . . . . . . . . . . . . . Miscellaneous . | . . . . . . . . . . . . . . . . . . . . . . . . . . Route ------- -11/Scrapyard -10/Materials (discovered 2 exits: *Mat x2) -9/Materials (discovered 2 exits: *Min x2) -9/Mines (discovered 3 exits: *Mat / *Exi / *Zio) -9/Exiles (discovered 2 exits: *Min x2) -8/Mines -8/Materials -8/Garrison (discovered 3 exits: *Mat x3) -8/Materials -7/Factory -7/Garrison -7/Factory (discovered 5 exits: Sto x2 / Low x2 / Gar) -7/Garrison (discovered 2 exits: *Fac x2) -6/Factory (discovered 3 exits: *Fac / *Low x2) -6/Lower Caves -6/Lower Caves -6/Data Miner -5/Proximity Caves -5/Factory (discovered 4 exits: Fac / Upp x2 / Gar) -5/Garrison (discovered 2 exits: *Fac x2) -4/Factory (discovered 5 exits: Upp x2 / Ext x2 / *Arm) -4/Armory -3/Research -3/Testing -2/Research -1/Access History --------- Turn | Location | Event 4 | -11/Scrapyard | Discovered new exit (range 15) 128 | -11/Scrapyard | Entered Materials 306 | -10/Materials | Build established: Mutant 461 | -10/Materials | Discovered new exit (range 16) 493 | -10/Materials | Discovered new exit (range 18) 542 | -10/Materials | Core integrity fell below 50% 550 | -10/Materials | Core integrity fell below 20% 559 | -10/Materials | Entered another Materials area 559 | -9/Materials | Evolved 2 slots: Propulsion x1, Utility x1 587 | -9/Materials | Lost 5 parts (1p3n1w) 705 | -9/Materials | Identified exit to Mines 715 | -9/Materials | Central database locked down 808 | -9/Materials | Entered Mines 819 | -9/Mines | Core integrity fell below 50% 855 | -9/Mines | Lost 9 parts (1p4n1u3w) 890 | -9/Mines | Discovered new exit (range 4) 891 | -9/Mines | Identified exit to Materials 913 | -9/Mines | A Derelict revealed a hidden shortcut to a safe place 917 | -9/Mines | Identified exit to Zion 920 | -9/Mines | Deemed a non-threat by the Exiles lab entrance 920 | -9/Mines | Discovered new exit (range 5) 922 | -9/Mines | Identified exit to Exiles 922 | -9/Mines | Entered Exiles 929 | -9/Exiles | Discovered new exit (range 17) 937 | -9/Exiles | Identified exit to Mines 948 | -9/Exiles | Met 8R-AWN 957 | -9/Exiles | Met EX-HEX 971 | -9/Exiles | Met EX-BIN 976 | -9/Exiles | Met EX-DEC 980 | -9/Exiles | Learned location of Zion (-7) 996 | -9/Exiles | Discovered exit to Mines (range 11) 1001 | -9/Exiles | Entered Mines 1038 | -8/Mines | Discovered exit to Materials (range 6) 1041 | -8/Mines | Entered Materials 1041 | -8/Materials | Evolved 2 slots: Utility x1, Weapon x1 1137 | -8/Materials | Identified exit to Garrison 1137 | -8/Materials | Entered Garrison 1293 | -8/Garrison | Lost 6 parts (1p3n1u1w) 1353 | -8/Garrison | Core integrity fell below 50% 1381 | -8/Garrison | Lost 4 parts (1p1n1u1w) 1410 | -8/Garrison | Discovered new exit (range 11) 1423 | -8/Garrison | Identified exit to Materials 1483 | -8/Garrison | Discovered exit to Materials (range 9) 1519 | -8/Garrison | Discovered exit to Materials (range 8) 1525 | -8/Garrison | Installed Relay Interface Framework 1527 | -8/Garrison | Entered Materials 1879 | -8/Materials | Core integrity fell below 20% 2017 | -8/Materials | Discovered new exit (range 5) 2077 | -8/Materials | Identified exit to Factory 2078 | -8/Materials | Entered Factory 2078 | -7/Factory | Evolved 2 slots: Propulsion x1, Utility x1 2335 | -7/Factory | Identified exit to Garrison 2348 | -7/Factory | Entered Garrison 2382 | -7/Garrison | Triggered checkpoint 2410 | -7/Garrison | Garrison Relay disabled 2524 | -7/Garrison | Triggered checkpoint 2561 | -7/Garrison | Triggered checkpoint 2569 | -7/Garrison | Triggered checkpoint 2606 | -7/Garrison | Lost 3 parts (1p1n1w) 2647 | -7/Garrison | Destroyed 15 combat bots 2695 | -7/Garrison | Discovered new exit (range 8) 2714 | -7/Garrison | Expanded RIF knowledge: Watcher Feeds 2758 | -7/Garrison | Entered Factory 2929 | -7/Factory | Build established: Scavenger-Gunner 3309 | -7/Factory | Identified exit to Storage 3309 | -7/Factory | Identified exit to Lower Caves 3375 | -7/Factory | Identified exit to Garrison 3375 | -7/Factory | Entered Garrison 3489 | -7/Garrison | Lost 3 parts (1n1u1w) 3532 | -7/Garrison | Discovered new exit (range 32) 3648 | -7/Garrison | Triggered checkpoint 3656 | -7/Garrison | Triggered checkpoint 3890 | -7/Garrison | Triggered checkpoint 3908 | -7/Garrison | Core integrity fell below 50% 3924 | -7/Garrison | Triggered checkpoint 3934 | -7/Garrison | Core integrity fell below 20% 3935 | -7/Garrison | Discovered new exit (range 10) 3938 | -7/Garrison | Triggered checkpoint 3942 | -7/Garrison | Expanded RIF knowledge: Patrol Navigation 3944 | -7/Garrison | Entered Factory 3944 | -6/Factory | Evolved 2 slots: Utility x2 3961 | -6/Factory | Lost 13 parts (1p4n4u4w) 3965 | -6/Factory | Identified exit to Lower Caves 3990 | -6/Factory | Discovered new exit (range 9) 4317 | -6/Factory | Build established: Scavenger-Mutant 4426 | -6/Factory | Entered Lower Caves 4436 | -6/Lower Caves | Encountered a Warlord checkpoint 4756 | -6/Lower Caves | Attracted the attention of an 0b10 checkpoint 4842 | -6/Lower Caves | Attracted the attention of an 0b10 outpost 4903 | -6/Lower Caves | Discovered new exit (range 9) 5272 | -6/Lower Caves | A Commander dispatched an escort 5273 | -6/Lower Caves | Learned Factory emergency access door positions 5273 | -6/Lower Caves | Learned Extension security intel 5273 | -6/Lower Caves | Learned Factory terminal intel 5457 | -6/Lower Caves | Entered another Lower Caves area 5457 | -6/Lower Caves | Accompanied by 4 allies 5458 | -6/Lower Caves | Commander's escort returned to base 5458 | -6/Lower Caves | Commander's escort returned to base 5458 | -6/Lower Caves | Commander's escort returned to base 5915 | -6/Lower Caves | Learned location of Armory (-4) 5915 | -6/Lower Caves | Learned 8 Factory zone layouts 5915 | -6/Lower Caves | Learned Armory emergency access door positions 5915 | -6/Lower Caves | Learned Factory security intel 5915 | -6/Lower Caves | Learned Research garrison access intel 5915 | -6/Lower Caves | Learned Extension garrison access intel 6012 | -6/Lower Caves | Lost 3 parts (1p2n) 6153 | -6/Lower Caves | Discovered new exit (range 14) 6225 | -6/Lower Caves | Encountered a Warlord checkpoint 6382 | -6/Lower Caves | Entered Data Miner 6383 | -6/Data Miner | Discovered new exit (range 6) 6406 | -6/Data Miner | Met Data Miner 6428 | -6/Data Miner | Learned location of Section 7 (-2) 6428 | -6/Data Miner | Acquired the access code to Warlord's prototype stash 6448 | -6/Data Miner | Received God Mode back door access code from Data Miner 6507 | -6/Data Miner | Entered Proximity Caves 6710 | -5/Proximity Caves | Escorted by Enhanced Grunt 6727 | -5/Proximity Caves | Attracted the attention of an 0b10 checkpoint 6807 | -5/Proximity Caves | Learned Factory stockpile data 6860 | -5/Proximity Caves | Discovered new exit (range 15) 6882 | -5/Proximity Caves | Entered Factory 6882 | -5/Factory | Accompanied by 1 ally 6882 | -5/Factory | Evolved 2 slots: Propulsion x1, Utility x1 6883 | -5/Factory | Identified exit to Upper Caves 6884 | -5/Factory | Identified exit to Factory 6888 | -5/Factory | Loaded intel: 25 terminal locations 6993 | -5/Factory | Identified exit to Garrison 6995 | -5/Factory | Entered Garrison 6995 | -5/Garrison | Accompanied by 1 ally 7046 | -5/Garrison | Triggered checkpoint 7080 | -5/Garrison | Garrison Relay disabled 7142 | -5/Garrison | Triggered checkpoint 7226 | -5/Garrison | Triggered checkpoint 7253 | -5/Garrison | Triggered checkpoint 7344 | -5/Garrison | Lost 14 parts (1p5n3u5w) 7424 | -5/Garrison | Discovered exit to Factory (range 10) 7555 | -5/Garrison | Lost 3 parts (2n1u) 7655 | -5/Garrison | Discovered exit to Factory (range 12) 7687 | -5/Garrison | Expanded RIF knowledge: Threat Obfuscation 7760 | -5/Garrison | Triggered checkpoint 7793 | -5/Garrison | Garrison Relay disabled 7860 | -5/Garrison | Entered Factory 7860 | -4/Factory | Evolved 2 slots: Power x1, Utility x1 7950 | -4/Factory | Lost 8 parts (2n2u4w) 7979 | -4/Factory | Identified exit to Upper Caves 7979 | -4/Factory | Identified exit to Extension 7979 | -4/Factory | Identified exit to Armory 8360 | -4/Factory | Entered Armory 8387 | -4/Armory | Lost 4 parts (1p3n) 8585 | -4/Armory | Found Antimissile System 8760 | -4/Armory | Allied Derelicts emerged from ambush trap array 8820 | -4/Armory | Found Gamma Bomb Array 8824 | -4/Armory | Found Gamma Bomb Array 9035 | -4/Armory | Discovered new exit (range 16) 9098 | -4/Armory | Lost 3 parts (1p2u) 9105 | -4/Armory | Spotted B-86 Titan 9134 | -4/Armory | Entered Research 9134 | -3/Research | Accompanied by 1 ally 9134 | -3/Research | Evolved 2 slots: Propulsion x1, Utility x1 9135 | -3/Research | Loaded intel: 3 garrison access locations 9160 | -3/Research | Lost 6 parts (4n2u) 9387 | -3/Research | Lost 4 parts (1p3u) 9426 | -3/Research | Spotted B-86 Titan 9755 | -3/Research | Incoming investigation squad redirected 9823 | -3/Research | Discovered new exit (range 21) 9845 | -3/Research | Identified exit to Testing 9868 | -3/Research | Entered Testing 9916 | -3/Testing | Scanned by Researcher 9922 | -3/Testing | Incoming investigation squad redirected 9927 | -3/Testing | Found Prototype Protection 9927 | -3/Testing | Identified Med. Regenerative Plating 9931 | -3/Testing | Found Med. Regenerative Plating 9946 | -3/Testing | Found Prototype Protection 9952 | -3/Testing | Identified SHELL Armor 10188 | -3/Testing | Incoming investigation squad redirected 10193 | -3/Testing | Found Faulty Spectral Analyzer 10287 | -3/Testing | Lost 10 parts (2p5n1u2w) 10665 | -3/Testing | Discovered new exit (range 11) 10716 | -3/Testing | Build established: Bothacker-Mutant 10747 | -3/Testing | Found Prototype Energy Cannon 10747 | -3/Testing | Identified Imp. Potential Cannon 10785 | -3/Testing | Found Prototype Processor 10785 | -3/Testing | Identified Exp. Signal Interpreter 10862 | -3/Testing | System corruption reached 10% 10919 | -3/Testing | Identified exit to Research 10964 | -3/Testing | Found Prototype Device 10964 | -3/Testing | Identified Exp. Hardlight Generator 11131 | -3/Testing | Entered Research 11131 | -2/Research | Evolved 2 slots: Power x1, Utility x1 11874 | -2/Research | Destroyed 7 combat bots 11874 | -2/Research | Lost 5 parts (1p1n1u2w) 11886 | -2/Research | System corruption reached 10% 11952 | -2/Research | Lost 4 parts (1p2n1w) 12006 | -2/Research | Lost 3 parts (1n2w) 12122 | -2/Research | Discovered new exit (range 15) 12128 | -2/Research | Lost 4 parts (1p1n2w) 12183 | -2/Research | Entered Access 12183 | -1/Access | Evolved 2 slots: Utility x2 12248 | -1/Access | Incoming investigation squad redirected 12624 | -1/Access | Build established: Scavenger-Mutant 13150 | -1/Access | Lost 3 parts (1p1n1w) 13264 | -1/Access | System corruption reached 10% 13313 | -1/Access | Lost 6 parts (2p2n1u1w) 13356 | -1/Access | Lost 3 parts (1p1n1u) 13360 | -1/Access | Destroyed 10 combat bots 13523 | -1/Access | System corruption reached 30% 13683 | -1/Access | First assault squad dispatched 13706 | -1/Access | Incoming assault squad redirected 13787 | -1/Access | Incoming assault squad redirected 13815 | -1/Access | Energy Cycler disabled 14125 | -1/Access | Build established: Scavenger-Skirmisher 14145 | -1/Access | Spotted B-99 Colossus 14169 | -1/Access | Lost 4 parts (3p1n) 14177 | -1/Access | Incoming assault squad redirected 14217 | -1/Access | Lost 9 parts (1p2n3u3w) 14359 | -1/Access | Core integrity fell below 50% 14463 | -1/Access | Core integrity fell below 20% 14509 | -1/Access | Lost 9 parts (3n6u) 14515 | -1/Access | Destroyed by S-43 Plague with Heavy Machine Gun Last Messages --------------- 14455_ Penetrated by Slug. 14456_ >> Machine Analyzer network decryption results: 14456_ Terminal x2 14456_ Slug penetrates Wall. 14458_ ALERT: Rogue bot located, Programmers report to Access Zone 3Z. 14459_ Relay Coupler [Duelist] destroyed. 14462_ Terminal disabled. 14465_ >> Machine Analyzer network decryption results: 14465_ Recycling Unit x1 14467_ System corrupted: Component data lost. 14478_ Core Analyzer destroyed. 14483_ RAKJRO/WJDDQJQNK LU0OE EYZRVA0TWPYXIIZC 14484_ >> Machine Analyzer network decryption results: 14484_ Recycling Unit x2 14492_ U-05 Engineer builds a Wall. 14496_ The unstable cave ceiling collapses. 14506_ System corrupted: Heat flow error (+244). 14509_ The unstable cave ceiling collapses. 14509_ G-73 Enforcer crushed by falling debris. 14511_ Centrium Leg destroyed. Map ----- +----------------------------------------------------+ | # """ + "" | | # " #### # | | # ???## # #################/## # | | # ?????# ##### ##????????# ####+### | | #! ! ?????# #???? #?????????# #??????? | | # ??????#+#????? #?????????# " #??????? | | # ] ??????????????? #?????????# """ #????*?? | | ######???????????????? #?? ? ????# """ #??????? | | ???????????????????????# ""???# " #??????? | | ???????????????????????# ! ""???# #??????? | | ??????????????"""??????+ Y"???# #??????? | | ???????????????Y"??????? "" ??# #??????? | | ???"??????????"""????????? "" ?###########??????? | | ?""""??????????????????????? # ###????????????? | | """""?????????????????????????= # ##?????????????? | | ?"""""?????????????#??????????##"##??????????????? | | ?""""??????????????# ???????### ##???????????????? | | ??"????????????????? ??????# ##????????????????? | | ????????????????#####/######## #?????????????????? | | ????????????????# ## ##?????????????????? | | ????????????????# # ###??????????????????? | | ????????????????#! p ;##????????????????????? | | ????????????????# ! ! ##?????????????????????? | | ????????????????#########;###????????????????????? | | ?????????????????????# sss #????????????????????? | | ?????????????????????# @ #????????????????????? | | ?????????????????????# #????????????????????? | | ?????????????????????# #????????????????????? | | ?????????????????????# #????????????????????? | | ?????????????????????# #????????????????????? | | ?????????????????????# #????????????????????? | | ?????????????????????# #????????????????????? | | ?????????!???????????# #????????????????????? | | ?????????????????????# #????????????????????? | | ?????????????????????# #????????????????????? | | ?????????????????????# #????????????????????? | | ?????????????????????# #????????????????????? | | ?????????????????????####+###????????????????????? | | ?????????????????????????????????????????????????? | | ?????????????????????????????????????????????????? | | ?????????????????????????????????????????????????? | | ?????????????????????????????????????????????????? | | ?????????????????????????????????????????????????? | | ?????????????????????????????????????????????????? | | ?????????????????????????????????????????????????? | | ?????????????????????????????????????????????????? | | ?????????????????????????????????????????????????? | | ?????????????????????????????""??????????????????? | | ?????????????????????????????""??????????????????? | | ?????????????????????????????T"??????????????????? | +----------------------------------------------------+ Best States ------------- Heat Dissipation 109 Energy Generation 57 Energy Capacity 650 Matter Stores 300 Matter Capacity 300 Sight Range 20 Robot Scan Range 16 Terrain Scan Range 16 Terrain Scan Density 410 Additional Mass Support 9 Base Temperature (-) 150 Armor Coverage 1800 Resistance: TH 20 Resistance: EM 25 Evasion (%) 62 Targeting Accuracy 8 Melee Accuracy 5 Target Analysis 8 Core Analysis 6 Recoil Reduction 6 Particle Charging 15 Offensive Hacking 11 Relay Coupler Types 3 Relay Coupler Value 54 Item Schematics ----------------- Combat Drone Bay | -6/Data Miner | Free Lgt. Regenerative Plating | -6/Data Miner | Free Cld. Gravmag System | -6/Data Miner | Free Imp. Thermal Defense Suite | -6/Data Miner | Free Tri-rail Accelerator | -6/Data Miner | Free Adv. Surge Thruster | -6/Data Miner | Free Adv. Transmission Jammer | -6/Data Miner | Free HERF Cannon | -6/Data Miner | Free Hyp. Railgun | -6/Data Miner | Free Imp. Energy Well | -3/Testing | Archive Spectral Analyzer | -3/Testing | Archive Exp. Coolant Injector | -3/Testing | Archive Robot Schematics ------------------ B-60 Warrior | -6/Data Miner | Free Y-64 Sentinel | -6/Data Miner | Free D-63 Destroyer | -6/Data Miner | Free M-22 Extractor | -6/Data Miner | Free A-27 Freighter | -6/Data Miner | Free G-50 Soldier | -6/Data Miner | Free E-15 Imp | -6/Data Miner | Free A-02 Transporter | -3/Testing | Archive Fabricated ------------ Nothing Alien Tech Used ----------------- None Achievements -------------- Factory Defaults Tank Challenges ------------ None Game ------ Seed GhostInsulatedChainsword Manual? 0 Play Time 04:24:19 Cumulative 144.0 hours Start 2022.04.10 @ 11:36:41 End 2022.04.10 @ 21:01:15 Sessions 3 Manual Loads 0 Difficulty Rogue Special Mode None Game No. 106 Rogue 88 Adventurer 6 Explorer 12 Win Type - Total 8 Types 5/0/1/1/0/0/1/0/0 Lore% 76 Gallery% 80 Achievement% 62 Wizard Run 0 Options --------- ASCII 0 Keyboard 0 Movement Numpad Keybinds 0 Fullscreen 1 Font 12/Fuzzy Map View 83x54 Tactical HUD 1 Map Filters NONE Filters NONE Steam 1 RUN: a5a99ca6-087c-42b1-91fe-d6b9e8a76d13